Workbook

Sheet COVER
B2: CSE PACKAGE & CONVEYOR CALCULATOR
B3: Warehouse Automation Guy | Michael Collins | Conveyor Solutions Engineering
B5: Built for engineers who move things for a living.
B10: PROJECT INFORMATION
B11: Project Name | D11: Notes Here
B12: Project Number
B13: Engineer
B14: Company
B15: Date Created
B18: REVISION HISTORY
B19: REV | C19: DATE | D19: DESCRIPTION | E19: AUTHOR
B27: HOW TO USE THIS CALCULATOR
B28: 1. Fill in Project Information above. Update revision history each time you save a new version.
B29: 2. Go to INPUTS & OUTPUTS tab. Enter carton sizes in the Carton Specs table — paste as many rows as needed.
B30: 3. Fill in Global Conveyor Inputs. These drive all calculations on all tabs.
B31: 4. All output cells (blue) calculate automatically. Never type in blue cells.
B32: 5. Click ADD SORTER to create a new sorter tab. Fill in sorter-specific inputs — carton data pulls automatically.
B33: 6. Click ADD TRANSFER to create a new 90° transfer tab. BF and OAW pull from main sheet as defaults.
B34: 7. See FORMULAS tab for plain-english explanations of every calculation.
B35: 8. Amber = INPUT. Blue = OUTPUT. Green = PASS. Red = FAIL.
B38: © Warehouse Automation Guy | Michael Collins | Not for redistribution without permission

Sheet INPUTS & OUTPUTS
A2: CSE PACKAGE & CONVEYOR CALCULATOR | Warehouse Automation Guy
A3: Amber = INPUT | Blue = OUTPUT | Do not type in blue cells | Michael Collins | Conveyor Solutions Engineering
B5: AMBER = INPUT | D5: BLUE = OUTPUT | F5: GREEN = PASS | H5: RED = FAIL
I6: See MACRO SETUP tab for instructions
A7: 1 | GLOBAL CONVEYOR INPUTS
B8: Speed In (FPM) | C8: 60 | D8: Main line inbound speed | H8: Roller Centers (in) | I8: 3 | J8: Standard: 3 in
B9: Speed Out (FPM) | C9: 120 | D9: Main line outbound speed | H9: Between Rail / BF (in) | I9: 21 | J9: Conveyor between-frame width
B10: Starting Gap (in) | C10: 24 | D10: Gap at induct / start of system | H10: OAW (in) | I10: 24 | J10: Overall width — for transfer and skew calcs
B11: Inside Curve Radius (in) | C11: 34.5 | D11: From manufacturer catalog — round UP to next BF after calc
A13: 2 | CARTON SPECIFICATIONS — paste carton data here, table auto-expands on Tab
B14: CARTON ID | C14: L (in) | D14: W (in) | E14: H (in) | F14: WT (lbs) | G14: WT/FT (lbs/ft) | H14: MIN CURVE BF (in) | I14: TUMBLE ANGLE (deg)
B15: Min | C15: 9 | D15: 6 | E15: 3 | F15: 0.1 | G15: =IFERROR(F15/(C15/12),"") -> 0.1333333333 | H15: =IFERROR(SQRT((C11+D15)*(C11+D15)+(C15/2)*(C15/2))-(C11-2),"") -> 8.249233122 | I15: =IFERROR(ATAN(C15/(3*E15))*180/PI(),"") -> 45
B16: Max | C16: 20 | D16: 15 | E16: 10 | F16: 50 | G16: =IFERROR(F16/(C16/12),"") -> 30 | H16: =IFERROR(SQRT((C11+D16)*(C11+D16)+(C16/2)*(C16/2))-(C11-2),"") -> 18 | I16: =IFERROR(ATAN(C16/(3*E16))*180/PI(),"") -> 33.69006753
B17: Insert Row To Add. Per-carton outputs (WT/FT, curve BF, tumble angle) auto-calculate.
A19: 3 | CALCULATED RESULTS
A20: CARTON SIZE & WEIGHT SUMMARY
C21: MIN | D21: MAX | E21: AVG
B22: LENGTH (in) | C22: =IFERROR(MIN(CartonSpecs[L (in)]),"") -> 9 | D22: =IFERROR(MAX(CartonSpecs[L (in)]),"") -> 20 | E22: =IFERROR(AVERAGE(CartonSpecs[L (in)]),"") -> 14.5
B23: WIDTH (in) | C23: =IFERROR(MIN(CartonSpecs[W (in)]),"") -> 6 | D23: =IFERROR(MAX(CartonSpecs[W (in)]),"") -> 15 | E23: =IFERROR(AVERAGE(CartonSpecs[W (in)]),"") -> 10.5
B24: HEIGHT (in) | C24: =IFERROR(MIN(CartonSpecs[H (in)]),"") -> 3 | D24: =IFERROR(MAX(CartonSpecs[H (in)]),"") -> 10 | E24: =IFERROR(AVERAGE(CartonSpecs[H (in)]),"") -> 6.5
B25: WEIGHT (lbs) | C25: =IFERROR(MIN(CartonSpecs[WT (lbs)]),"") -> 0.1 | D25: =IFERROR(MAX(CartonSpecs[WT (lbs)]),"") -> 50 | E25: =IFERROR(AVERAGE(CartonSpecs[WT (lbs)]),"") -> 25.05
B26: MIN TUMBLE ANGLE — worst case incline limit (°) | C26: =IFERROR(MIN(CartonSpecs[TUMBLE ANGLE (deg)]),"") -> 33.69006753 | D26: Worst case carton sets the incline limit — if this angle is unacceptable, find the outlier carton in the table above
B27: MAX CURVE BF REQUIRED (in) | C27: =IFERROR(MAX(CartonSpecs[MIN CURVE BF (in)]),"") -> 18 | D27: Round UP to next catalog BF — requires Inside Curve Radius input above — add guard thickness for chain/belt curves
A29: PRODUCT GAP, THEORETICAL RATE & PITCH
C30: MIN | D30: MAX | E30: AVG
B31: GAP PRODUCED (in) | C31: =IFERROR(C9*(C22/C8)-C22+C10,"") -> 33 | D31: =IFERROR(C9*(D22/C8)-D22+C10,"") -> 44 | E31: =IFERROR(C9*(E22/C8)-E22+C10,"") -> 38.5 | F31: Gap between packages at Speed Out — based on min, max, avg carton length
B32: THEORETICAL RATE (CPM) | C32: =IFERROR(C8/((D22+C10)/12),"") -> 16.36363636 | D32: =IFERROR(C8/((C22+C10)/12),"") -> 21.81818182 | E32: =IFERROR(C8/((E22+C10)/12),"") -> 18.7012987 | F32: CPM — MAX pkg gives slowest (design) rate. MIN pkg gives fastest possible rate.
B33: PITCH (in) Leading to Leading Edge Spacing | C33: =IFERROR(C31+C22,"") -> 42 | D33: =IFERROR(D31+D22,"") -> 64 | E33: =IFERROR(E31+E22,"") -> 53 | F33: in - gap plus package length
A35: SKEW CONVEYOR REQUIRED LENGTH
B36: SKEW LENGTH REQUIRED (ft) | C36: =IFERROR(((I9-C23)*I9/I8+D22)/12,"") -> 10.41666667 | D36: ft — narrowest carton must traverse full BF. Longest carton must be contained during traverse. Assumes longest length.
A38: SCAN / LOOKUP TIME UTILITY
B39: Belt Speed (FPM) | C39: 120 | D39: Distance (in) | E39: 120 | F39: Enter any speed and distance — time calculates automatically
B40: TIME BETWEEN POINTS (seconds) | C40: =IFERROR((E39/12)/(C39/60),"") -> 5 | D40: seconds - time for product to travel from one point to another
A42: © Warehouse Automation Guy | Michael Collins | CSE Master Calculator

Sheet FORMULAS
A1: FORMULA REFERENCE — read only | Warehouse Automation Guy
B3: CALCULATION | C3: PLAIN ENGLISH | D3: FORMULA | E3: SOURCE CALCULATOR
B4: Weight per Foot (lbs/ft) | C4: Package weight divided by its length converted to feet | D4: WT / (L / 12) | E4: PACKAGE_CALCS_r3_.xltx
B5: Min Curve BF (in) | C5: Minimum between-frame width for a curve given inside radius, package width and length | D5: SQRT((IR + W)² + (L/2)²) − (IR − 2) | E5: Minimum_Curve_BR.xlsx / Curve_Formula.xlsx
B6: Tumble Angle (°) | C6: Maximum safe incline before the carton tips — design to the worst case (minimum) across all cartons | D6: ATAN(L / (3 × H)) × 180 / PI | E6: Box_Tumbling.xlsx
B7: Gap Produced (in) | C7: Gap between packages at Speed Out, accounting for speed ratio and starting gap | D7: SpeedOut × (L / SpeedIn) − L + StartingGap | E7: PACKAGE_CALCS_r3_.xltx
B8: Theoretical Rate (CPM) | C8: Maximum throughput achievable at a given speed and gap — use max package length for design rate | D8: SpeedIn / ((L + StartingGap) / 12) | E8: PACKAGE_CALCS_r3_.xltx
B9: Pitch (in) | C9: Center to center distance between packages | D9: Gap + L | E9: PACKAGE_CALCS_r3_.xltx
B10: Skew Length (ft) | C10: Conveyor length needed for narrowest carton to traverse full BF — longest carton sets minimum containment length | D10: ((BF − MinW) × BF / RollerCenters + MaxL) / 12 | E10: Skewed_Roller.xlsx
B11: Lookup Time (sec) | C11: Time for product to travel a given distance at a given belt speed | D11: (Distance / 12) / (Speed / 60) | E11: PACKAGE_CALCS_r3_.xltx
B12: SORTER — CFPM | C12: Minimum conveyor speed needed to achieve required throughput rate — rate drives speed | D12: (AvgLength × Rate CPM) / 12 | E12: Case_Feet_Per_Minute.xlsx
B13: SORTER — Gap Produced (in) | C13: Actual gap between cartons at sorter speed and required rate | D13: (SorterSpeed × 12 / Rate) − AvgLength | E13: PACKAGE_CALCS_r3_.xltx
B14: SORTER — Gap Required by Geometry (in) | C14: Minimum gap needed for the sorter to physically divert the widest carton without hitting the next one | D14: (MaxWidth × SIN(divert angle)) + 2 | E14: Gap_Requirement.xlsx
B15: SORTER — Takeaway Spur Speed (FPM) | C15: Required speed of the takeaway spur belt to match product velocity at the divert angle | D15: SorterSpeed / COS(divert angle) | E15: Speed_of_Take_Away_Spur.xlsx
B16: TRANSFER — Lateral Distance (in) | C16: Distance the carton must travel sideways to fully clear the conveyor — worst case carton position | D16: BF + ((OAW − BF) / 2) | E16: New — 90° Transfer Calc
B17: TRANSFER — Cycle Time (sec) | C17: Total time the transfer is busy — lift, lateral travel, lower — trunk line cannot deliver next carton during this window | D17: LiftTime + (LateralDist / 12) / (TransferSpeed / 60) + LowerTime | E17: New — 90° Transfer Calc
B18: TRANSFER — Min Gap Required (in) | C18: Minimum gap needed on trunk line for transfer to complete full cycle before next carton arrives — includes 4in safety margin | D18: (CycleTime × TrunkSpeed / 5) + 4 | E18: New — 90° Transfer Calc

Sheet _SORTER_TMPL (hidden)
A1: SORTER — [NAME] | Warehouse Automation Guy | CSE Package Calculator
A2: Carton data and BF pull automatically from INPUTS & OUTPUTS tab. Fill in amber cells.
A4: SORTER INPUTS
B5: Sorter Name / ID | F5: Used to label this tab
B6: Sorter Model | C6: ProSort 121 | F6: Select from dropdown - sets manufacturer minimum gap
B7: Required Rate (CPM) | F7: Customer throughput requirement - this drives everything
B8: Divert Angle (°) | C8: 30 | F8: Typically 30°. Also common: 22°
B9: Safety Factor | C9: 1.15 | F9: Applied to CFPM - 1.15 standard per Hytrol spec. Can reduce at higher speeds.
B10: Gap at Sorter Induct (in) | C10: =IFERROR('INPUTS & OUTPUTS'!C31,"") -> 33 | F10: Defaults from main sheet min-pkg gap produced. Override if different.
A11: SORTER OUTPUTS | C11: MIN PKG | D11: MAX PKG | E11: AVG PKG | F11: NOTE
B12: CFPM — Min Conveyor Speed (FPM) | C12: =IFERROR(('INPUTS & OUTPUTS'!C22*C7/12)*C9,"") -> 0 | D12: =IFERROR(('INPUTS & OUTPUTS'!D22*C7/12)*C9,"") -> 0 | E12: =IFERROR(('INPUTS & OUTPUTS'!E22*C7/12)*C9,"") -> 0 | F12: (L × Rate / 12) × Safety Factor — MAX pkg is design speed
B13: SGR — Speed Gap Ratio | C13: =IFERROR(('INPUTS & OUTPUTS'!C22+C10)/'INPUTS & OUTPUTS'!C22,"") -> 4.666666667 | D13: =IFERROR(('INPUTS & OUTPUTS'!D22+C10)/'INPUTS & OUTPUTS'!D22,"") -> 2.65 | E13: =IFERROR(('INPUTS & OUTPUTS'!E22+C10)/'INPUTS & OUTPUTS'!E22,"") -> 3.275862069 | F13: (L + Gap at Induct) / L - MIN pkg = highest SGR = worst case
B14: REQUIRED SORTER SPEED (FPM) | C14: =IFERROR(C13*C12,"") -> 0 | D14: =IFERROR(D13*D12,"") -> 0 | E14: =IFERROR(E13*E12,"") -> 0 | F14: SGR × CFPM - MAX col is your design speed
B15: GAP PRODUCED at Sorter Speed (in) | C15: =IFERROR((C14*12/C7)-'INPUTS & OUTPUTS'!C22,"") ->  | D15: =IFERROR((D14*12/C7)-'INPUTS & OUTPUTS'!D22,"") ->  | E15: =IFERROR((E14*12/C7)-'INPUTS & OUTPUTS'!E22,"") ->  | F15: (Speed × 12 / Rate) − L
B16: SORTER MODEL MIN GAP (in) | C16: =IFERROR(IF(C6="ProSort SC",12,IF(C6="ProSort 121",IF('INPUTS & OUTPUTS'!D23<8,6,IF('INPUTS & OUTPUTS'!D23<16,9,IF('INPUTS & OUTPUTS'!D23<24,12,15))),IF(C6="ProSort 131",IF('INPUTS & OUTPUTS'!D23<6,6,IF('INPUTS & OUTPUTS'!D23<12,9,IF('INPUTS & OUTPUTS'!D23<18,12,15))),IF(C6="ProSort 421",IF('INPUTS & OUTPUTS'!D23<13,10,IF('INPUTS & OUTPUTS'!D23<26,16,20)),IF(C6="ProSort 431",IF('INPUTS & OUTPUTS'!D23<10,10,IF('INPUTS & OUTPUTS'!D23<20,16,IF('INPUTS & OUTPUTS'!D23<30,20,26))),IF(C6="QS-1",12,IF(C6="QS-2",18,""))))))),"Select model") -> 9 | D16: ← uses Max W | F16: Width-based per Hytrol spec card — uses widest carton
B17: GAP REQUIRED — Geometry (in) | C17: =IFERROR(('INPUTS & OUTPUTS'!D23*SIN(RADIANS(C8)))+2,"") -> 9.5 | D17: ← uses Max W | F17: (Max W × SIN(angle)) + 2
B18: TAKEAWAY SPUR SPEED (FPM) | C18: =IFERROR(C14/COS(RADIANS(C8)),"") -> 0 | D18: =IFERROR(D14/COS(RADIANS(C8)),"") -> 0 | E18: =IFERROR(E14/COS(RADIANS(C8)),"") -> 0
A19: GAP & SPEED CHECKS | C19: MIN PKG | D19: MAX PKG | E19: AVG PKG | F19: NOTE
B20: Gap Produced vs Model Min Gap | C20: =IFERROR(IF(C10>=C16,"PASS","FAIL"),"—") -> PASS | D20: =IFERROR(IF(C10>=C16,"PASS","FAIL"),"—") -> PASS | E20: =IFERROR(IF(C10>=C16,"PASS","FAIL"),"—") -> PASS | F20: Gap produced vs model minimum -MIN pkg is binding
B21: Gap Produced vs Geometric Requirement | C21: =IFERROR(IF(C10>=C17,"PASS","FAIL"),"—") -> PASS | D21: =IFERROR(IF(C10>=C17,"PASS","FAIL"),"—") -> PASS | E21: =IFERROR(IF(C10>=C17,"PASS","FAIL"),"—") -> PASS | F21: Gap produced vs geometric clearance
B22: Gap at Induct vs Model Min Gap | C22: =IFERROR(IF(C10>=C16,"PASS","FAIL"),"—") -> PASS | D22: =IFERROR(IF(C10>=C16,"PASS","FAIL"),"—") -> PASS | E22: =IFERROR(IF(C10>=C16,"PASS","FAIL"),"—") -> PASS | F22: Induct gap must meet model minimum
B23: Gap at Induct vs Geometric Requirement | C23: =IFERROR(IF(C10>=C17,"PASS","FAIL"),"—") -> PASS | D23: =IFERROR(IF(C10>=C17,"PASS","FAIL"),"—") -> PASS | E23: =IFERROR(IF(C10>=C17,"PASS","FAIL"),"—") -> PASS | F23: Induct gap vs geometric clearance
A25: LOOKUP TIME UTILITY — uses MAX sorter speed | F25: NOTE
B26: Distance Between Points (in)
B27: TIME BETWEEN POINTS (seconds) | C27: =IFERROR((C26/12)/(D14/60),"") ->  | F27: seconds - uses MAX sorter speed
A28: © Warehouse Automation Guy | Michael Collins

Sheet _XFER_TMPL (hidden)
A1: 90° TRANSFER - [NAME] | Warehouse Automation Guy | CSE Package Calculator
A2: BF and OAW default from INPUTS & OUTPUTS tab. Override here if this transfer is on a different conveyor width.
A4: TRANSFER INPUTS
B5: Transfer Name / ID | D5: Used to label this tab
B6: Trunk Line Speed (FPM) | D6: Main conveyor speed feeding this transfer
B7: Transfer Lateral Speed (FPM) | D7: Speed of transfer mechanism moving carton sideways
B8: OAW (in) | C8: ='INPUTS & OUTPUTS'!I10 -> 24 | D8: Defaults from main sheet (I10) - override if different
B9: BF (in) | C9: ='INPUTS & OUTPUTS'!I9 -> 21 | D9: Defaults from main sheet (I9) - override if different
B10: Starting Gap (in) | C10: =IFERROR('INPUTS & OUTPUTS'!C31,"") -> 33 | D10: Defaults from main sheet min-pkg gap produced. Override if different.
B11: Lift Time (sec) | C11: 0.5 | D11: Default 0.5 sec - adjust for specific transfer model
B12: Lower Time (sec) | C12: 0.5 | D12: Default 0.5 sec - adjust for specific transfer model
A13: TRANSFER OUTPUTS
B14: LATERAL TRAVEL DISTANCE (in) | C14: =IFERROR(C9+((C8-C9)/2),"") -> 22.5 | D14: BF + half side frame - worst case carton position opposite divert side
B15: TRANSFER CYCLE TIME (sec) | C15: =IFERROR(C11+(C14/12)/(C7/60)+C12,"") ->  | D15: Lift + lateral travel + lower
B16: MIN GAP REQUIRED ON TRUNK LINE (in) | C16: =IFERROR((C15*C6/5)+4,"") ->  | D16: (Cycle time × trunk speed / 5) + 4 in buffer
A18: TRANSFER CHECK
B19: Gap Available vs Min Gap Required | C19: =IFERROR(IF(C10>=C16,"PASS","FAIL"),"Enter inputs") -> FAIL | D19: FAIL = carton collision - increase gap or slow trunk speed
A21: LOOKUP TIME UTILITY - uses trunk line speed
B22: Distance Between Points (in)
B23: TIME BETWEEN POINTS (seconds) | C23: =IFERROR((C22/12)/(C6/60),"") ->  | D23: seconds - uses trunk line speed as reference
A25: © Warehouse Automation Guy | Michael Collins

Sheet MACRO SETUP
A1: MACRO SETUP — one-time setup to enable Add Sorter and Add Transfer buttons
A3: STEP 1 — Enable Macros
B4: 1. | C4: When you open this file, click 'Enable Content' / 'Enable Macros' in the yellow security bar at the top.
B5: 2. | C5: If you don't see that bar: File → Options → Trust Center → Trust Center Settings → Macro Settings → Enable all macros
B6: 3. | C6: Save the file as .xlsm (macro-enabled workbook) if prompted.
A8: STEP 2 — Paste the VBA Code (one time only)
B9: 1. | C9: Press Alt + F11 to open the Visual Basic Editor.
B10: 2. | C10: In the left panel, find your workbook (e.g. 'VBAProject (Product Spec Calc r4.0 ).
B11: 3. | C11: Right-click on it → Insert → Module
B12: 4. | C12: Copy ALL the code from the green box below and paste it into the new module.
B13: 5. | C13: Press Ctrl + S to save. Close the VBA editor (Alt + F11 again).
B14: 6. | C14: Done. The ADD SORTER and ADD TRANSFER buttons on the INPUTS & OUTPUTS tab will now work.
A16: VBA CODE — copy everything below this line
C17: Sub AddSorter()
C18: Dim ws As Worksheet, tmpl As Worksheet
C19: Dim newName As String, tabName As String
C20: newName = InputBox("Enter sorter name:", "Add Sorter", "Sorter " & CountSheetsByPrefix("S - ") + 1)
C21: If Trim(newName) = "" Then Exit Sub
C22: tabName = "S - " & Left(CleanTabName(newName), 27)
C23: If SheetExists(tabName) Then MsgBox "Tab already exists.", vbExclamation: Exit Sub
C24: If Not SheetExists("_SORTER_TMPL") Then MsgBox "_SORTER_TMPL tab not found.", vbCritical: Exit Sub
C25: Set tmpl = ThisWorkbook.Sheets("_SORTER_TMPL")
C26: tmpl.Copy After:=ThisWorkbook.Sheets(ThisWorkbook.Sheets.count)
C27: Set ws = ThisWorkbook.Sheets(ThisWorkbook.Sheets.count)
C28: ws.name = tabName
C29: ws.Visible = xlSheetVisible
C30: ws.Tab.Color = RGB(240, 196, 25)
C31: ws.Cells(1, 1).Value = " SORTER - " & UCase(newName) & " | Warehouse Automation Guy | CSE Package Calculator"
C32: ws.Cells(LabelRow(ws, "Sorter Name / ID"), 3).Value = newName
C33: ws.Activate
C34: MsgBox "Sorter tab created!" & Chr(10) & Chr(10) & "1. Select Sorter Model" & Chr(10) & "2. Enter Required Rate (CPM)" & Chr(10) & "3. Review calculated sorter speed", vbInformation, "Done"
C35: End Sub
C37: Sub AddTransfer()
C38: Dim ws As Worksheet, tmpl As Worksheet
C39: Dim newName As String, tabName As String
C40: newName = InputBox("Enter transfer name:", "Add 90 Transfer", "Transfer " & CountSheetsByPrefix("T - ") + 1)
C41: If Trim(newName) = "" Then Exit Sub
C42: tabName = "T - " & Left(CleanTabName(newName), 27)
C43: If SheetExists(tabName) Then MsgBox "Tab already exists.", vbExclamation: Exit Sub
C44: If Not SheetExists("_XFER_TMPL") Then MsgBox "_XFER_TMPL tab not found.", vbCritical: Exit Sub
C45: Set tmpl = ThisWorkbook.Sheets("_XFER_TMPL")
C46: tmpl.Copy After:=ThisWorkbook.Sheets(ThisWorkbook.Sheets.count)
C47: Set ws = ThisWorkbook.Sheets(ThisWorkbook.Sheets.count)
C48: ws.name = tabName
C49: ws.Visible = xlSheetVisible
C50: ws.Tab.Color = RGB(220, 230, 241)
C51: ws.Cells(1, 1).Value = " 90 DEGREE TRANSFER - " & UCase(newName) & " | Warehouse Automation Guy | CSE Package Calculator"
C52: ws.Cells(LabelRow(ws, "Transfer Name / ID"), 3).Value = newName
C53: ws.Activate
C54: MsgBox "Transfer tab created!" & Chr(10) & "Starting Gap, OAW and BF defaulted from main sheet." & Chr(10) & "Fill in Trunk Speed and Lateral Speed.", vbInformation, "Done"
C55: End Sub
C57: Function CleanTabName(s As String) As String
C58: Dim result As String, i As Integer
C59: result = s
C60: For i = 1 To Len("/\?*[]")
C61: result = Replace(result, Mid("/\?*[]", i, 1), "-")
C62: Next i
C63: CleanTabName = result
C64: End Function
C66: Function SheetExists(name As String) As Boolean
C67: Dim ws As Worksheet
C68: For Each ws In ThisWorkbook.Sheets
C69: If ws.name = name Then SheetExists = True: Exit Function
C70: Next ws
C71: SheetExists = False
C72: End Function
C74: Function CountSheetsByPrefix(prefix As String) As Integer
C75: Dim ws As Worksheet, count As Integer
C76: For Each ws In ThisWorkbook.Sheets
C77: If Left(ws.name, Len(prefix)) = prefix Then count = count + 1
C78: Next ws
C79: CountSheetsByPrefix = count
C80: End Function
C82: Function LabelRow(ws As Worksheet, label As String) As Long
C83: Dim r As Long
C84: For r = 1 To 50
C85: If Trim(CStr(ws.Cells(r, 2).Value)) = Trim(label) Then
C86: LabelRow = r: Exit Function
C87: End If
C88: Next r
C89: LabelRow = 0
C90: End Function
C91: CleanName = result
C92: End Function
C94: Function SheetExists(name As String) As Boolean
C95: Dim ws As Worksheet
C96: For Each ws In ThisWorkbook.Sheets
C97: If ws.Name = name Then SheetExists = True: Exit Function
C98: Next ws
C99: SheetExists = False
C100: End Function
C102: Function CountSheetsByPrefix(prefix As String) As Integer
C103: Dim ws As Worksheet, count As Integer
C104: For Each ws In ThisWorkbook.Sheets
C105: If Left(ws.Name, Len(prefix)) = prefix Then count = count + 1
C106: Next ws
C107: CountSheetsByPrefix = count
C108: End Function
C110: Function LabelRow(ws As Worksheet, label As String) As Long
C111: Dim r As Long
C112: For r = 1 To 40
C113: If InStr(1, CStr(ws.Cells(r, 2).Value), label, vbTextCompare) > 0 Then
C114: LabelRow = r: Exit Function
C115: End If
C116: Next r
C117: LabelRow = 5
C118: End Function
A120: © Warehouse Automation Guy | Michael Collins | This code is proprietary. Do not redistribute.
